[Event "Early-Titled-Tuesday-Blitz-April-23-2024"]
[Site "Chess.com"]
[Date "2024.04.23"]
[Round "8"]
[White "Eliwood44"]
[Black "Maria_Elayza"]
[Result "1-0"]
[WhiteElo "2469"]
[BlackElo "2168"]
[TimeControl "180+1"]
[EndTime "9:30:39 PDT"]
[Termination "Eliwood44 won by resignation"]

1. d4 {[%clk 0:02:54.7]} 1... d5 {[%clk 0:02:58.2]} 2. c4 {[%clk 0:02:54]} 2...
e6 {[%clk 0:02:57.7]} 3. Nc3 {[%clk 0:02:53.6]} 3... Nf6 {[%clk 0:02:57.4]} 4.
cxd5 {[%clk 0:02:54]} 4... exd5 {[%clk 0:02:57.4]} 5. Bg5 {[%clk 0:02:53.7]}
5... Be7 {[%clk 0:02:57.6]} 6. e3 {[%clk 0:02:50.5]} 6... O-O {[%clk 0:02:57.1]}
7. Bd3 {[%clk 0:02:51.1]} 7... h6 {[%clk 0:02:56.8]} 8. Bh4 {[%clk 0:02:51]}
8... c6 {[%clk 0:02:57]} 9. Nge2 {[%clk 0:02:50.8]} 9... Bg4 {[%clk 0:02:56.7]}
10. f3 {[%clk 0:02:48.5]} 10... Bh5 {[%clk 0:02:55.6]} 11. Bf2 {[%clk
0:02:48.3]} 11... Nbd7 {[%clk 0:02:52.9]} 12. Qc2 {[%clk 0:02:48.3]} 12... Re8
{[%clk 0:02:48]} 13. g4 {[%clk 0:02:48]} 13... Bg6 {[%clk 0:02:47.5]} 14. Bxg6
{[%clk 0:02:47.9]} 14... fxg6 {[%clk 0:02:47.6]} 15. Qxg6 {[%clk 0:02:48.6]}
15... Nf8 {[%clk 0:02:47.7]} 16. Qc2 {[%clk 0:02:33.4]} 16... c5 {[%clk
0:02:47.3]} 17. O-O-O {[%clk 0:02:31.8]} 17... c4 {[%clk 0:02:45.8]} 18. h4
{[%clk 0:02:31.1]} 18... b5 {[%clk 0:02:23.3]} 19. g5 {[%clk 0:02:24.3]} 19...
Nh5 {[%clk 0:01:59.1]} 20. gxh6 {[%clk 0:02:21.3]} 20... b4 {[%clk 0:01:57.9]}
21. Nb1 {[%clk 0:02:17]} 21... b3 {[%clk 0:01:56.6]} 22. axb3 {[%clk 0:02:17]}
22... cxb3 {[%clk 0:01:56.6]} 23. Qf5 {[%clk 0:02:11]} 23... Rc8+ {[%clk
0:01:52.3]} 24. Nbc3 {[%clk 0:02:08.8]} 24... Qa5 {[%clk 0:01:45.3]} 25. Kb1
{[%clk 0:02:06.4]} 25... Bb4 {[%clk 0:01:39.2]} 26. hxg7 {[%clk 0:01:49.9]}
26... Nh7 {[%clk 0:01:32.1]} 27. Qxd5+ {[%clk 0:01:47.2]} 27... Qxd5 {[%clk
0:01:24.5]} 28. Nxd5 {[%clk 0:01:48.1]} 28... Be7 {[%clk 0:01:22]} 29. Rc1
{[%clk 0:01:45.4]} 29... Rb8 {[%clk 0:01:20.2]} 30. Rc7 {[%clk 0:01:43.7]} 30...
Bf6 {[%clk 0:01:16.8]} 31. e4 {[%clk 0:01:35.3]} 31... Nxg7 {[%clk 0:01:06.9]}
32. Nxf6+ {[%clk 0:01:34.8]} 32... Nxf6 {[%clk 0:01:06.6]} 33. Rg1 {[%clk
0:01:35.2]} 33... Nh5 {[%clk 0:01:04.2]} 34. Nf4 {[%clk 0:01:35.1]} 34... Nxf4
{[%clk 0:01:03.8]} 35. Rgxg7+ {[%clk 0:01:34.6]} 35... Kh8 {[%clk 0:01:01.9]}
36. d5 {[%clk 0:01:28.3]} 36... Rbc8 {[%clk 0:00:55.6]} 37. Bd4 {[%clk
0:01:18.2]} 37... Rxc7 {[%clk 0:00:52]} 38. Rxc7+ {[%clk 0:01:17.9]} 38... Kg8
{[%clk 0:00:52.1]} 39. Rg7+ {[%clk 0:01:15.9]} 39... Kf8 {[%clk 0:00:51.4]} 40.
Rb7 {[%clk 0:01:16.4]} 40... a5 {[%clk 0:00:47.4]} 41. Rxb3 {[%clk 0:01:15]}
41... Nd3 {[%clk 0:00:43.2]} 42. Rxd3 {[%clk 0:01:13.8]} 1-0

[Event "Early-Titled-Tuesday-Blitz-April-23-2024"]
[Site "Chess.com"]
[Date "2024.04.23"]
[Round "8"]
[White "ReinisUz"]
[Black "AljoschaFeuerstack"]
[Result "0-1"]
[WhiteElo "2466"]
[BlackElo "2603"]
[TimeControl "180+1"]
[EndTime "9:30:44 PDT"]
[Termination "AljoschaFeuerstack won by resignation"]

1. e4 {[%clk 0:02:58.9]} 1... c6 {[%clk 0:02:59.8]} 2. Nf3 {[%clk 0:02:58.4]}
2... d5 {[%clk 0:03:00]} 3. exd5 {[%clk 0:02:59]} 3... cxd5 {[%clk 0:03:00.8]}
4. d4 {[%clk 0:02:59.6]} 4... a6 {[%clk 0:03:00.2]} 5. c3 {[%clk 0:02:59.6]}
5... Nc6 {[%clk 0:03:00.2]} 6. Bf4 {[%clk 0:02:59.2]} 6... Bg4 {[%clk
0:02:59.8]} 7. Nbd2 {[%clk 0:02:59.1]} 7... e6 {[%clk 0:02:59.4]} 8. Be2 {[%clk
0:02:59.2]} 8... Nf6 {[%clk 0:02:58.9]} 9. h3 {[%clk 0:02:58.9]} 9... Bh5 {[%clk
0:02:58.4]} 10. O-O {[%clk 0:02:59.2]} 10... Bd6 {[%clk 0:02:58.6]} 11. Bxd6
{[%clk 0:02:57.5]} 11... Qxd6 {[%clk 0:02:59.5]} 12. Ne5 {[%clk 0:02:56.5]}
12... Nxe5 {[%clk 0:02:50.6]} 13. Bxh5 {[%clk 0:02:56]} 13... Nxh5 {[%clk
0:02:29.4]} 14. Qxh5 {[%clk 0:02:55.2]} 14... Nd7 {[%clk 0:02:18]} 15. Qg4
{[%clk 0:02:50.2]} 15... O-O {[%clk 0:02:17.2]} 16. Rfe1 {[%clk 0:02:49.7]}
16... b5 {[%clk 0:02:16.7]} 17. Re3 {[%clk 0:02:49.4]} 17... b4 {[%clk 0:02:14]}
18. Rg3 {[%clk 0:02:44.1]} 18... g6 {[%clk 0:02:13.5]} 19. Qg5 {[%clk
0:02:34.2]} 19... bxc3 {[%clk 0:02:08.9]} 20. bxc3 {[%clk 0:02:35.1]} 20... Rfc8
{[%clk 0:02:03.6]} 21. Re1 {[%clk 0:02:26.8]} 21... Rc7 {[%clk 0:01:37.3]} 22.
Ree3 {[%clk 0:02:17.8]} 22... Rac8 {[%clk 0:01:36.6]} 23. Qh6 {[%clk 0:02:13.4]}
23... Qf8 {[%clk 0:01:29.4]} 24. Qh4 {[%clk 0:02:04.1]} 24... Qa3 {[%clk
0:01:22.9]} 25. Nf3 {[%clk 0:01:52]} 25... Rxc3 {[%clk 0:01:16]} 26. Rxc3 {[%clk
0:01:46]} 26... Rxc3 {[%clk 0:01:12.3]} 27. Ng5 {[%clk 0:00:56.3]} 27... Nf8
{[%clk 0:01:02.4]} 28. Qf4 {[%clk 0:00:47]} 28... Qc1+ {[%clk 0:01:01.6]} 29.
Qxc1 {[%clk 0:00:45.9]} 29... Rxc1+ {[%clk 0:01:02.5]} 30. Kh2 {[%clk
0:00:46.5]} 30... Rc2 {[%clk 0:01:01.9]} 31. Rf3 {[%clk 0:00:45.7]} 31... f5
{[%clk 0:00:53.6]} 32. Kg3 {[%clk 0:00:41.1]} 32... h6 {[%clk 0:00:52.9]} 0-1

[Event "Early-Titled-Tuesday-Blitz-April-23-2024"]
[Site "Chess.com"]
[Date "2024.04.23"]
[Round "8"]
[White "Mikhail_Bryakin"]
[Black "sonicdravise"]
[Result "1-0"]
[WhiteElo "2841"]
[BlackElo "2607"]
[TimeControl "180+1"]
[EndTime "9:30:49 PDT"]
[Termination "Mikhail_Bryakin won by resignation"]

1. e4 {[%clk 0:03:00.9]} 1... c6 {[%clk 0:03:00.5]} 2. c4 {[%clk 0:02:59.4]}
2... d5 {[%clk 0:03:00]} 3. cxd5 {[%clk 0:03:00]} 3... cxd5 {[%clk 0:03:00.9]}
4. exd5 {[%clk 0:03:00.9]} 4... Nf6 {[%clk 0:03:01.1]} 5. Nc3 {[%clk 0:03:01.2]}
5... g6 {[%clk 0:02:54.8]} 6. Bb5+ {[%clk 0:03:01]} 6... Nbd7 {[%clk 0:02:54.1]}
7. Nf3 {[%clk 0:02:56]} 7... Bg7 {[%clk 0:02:54.2]} 8. O-O {[%clk 0:02:56]} 8...
O-O {[%clk 0:02:53.2]} 9. d3 {[%clk 0:02:56.5]} 9... a6 {[%clk 0:02:50.4]} 10.
Bc4 {[%clk 0:02:56.5]} 10... b5 {[%clk 0:02:50.8]} 11. Bb3 {[%clk 0:02:56.9]}
11... Bb7 {[%clk 0:02:50.9]} 12. Bg5 {[%clk 0:02:53.8]} 12... b4 {[%clk
0:02:44.2]} 13. Ne4 {[%clk 0:02:49.6]} 13... Bxd5 {[%clk 0:02:41.8]} 14. Bxd5
{[%clk 0:02:43.9]} 14... Nxd5 {[%clk 0:02:42.7]} 15. Qb3 {[%clk 0:02:43.4]}
15... N7b6 {[%clk 0:02:36.5]} 16. Rac1 {[%clk 0:02:42.8]} 16... a5 {[%clk
0:02:34.4]} 17. a4 {[%clk 0:02:41.8]} 17... h6 {[%clk 0:02:30.8]} 18. Bd2 {[%clk
0:02:31.9]} 18... Qd7 {[%clk 0:02:18]} 19. Nc5 {[%clk 0:02:30.8]} 19... Qf5
{[%clk 0:02:18.5]} 20. Rfe1 {[%clk 0:02:30.7]} 20... Rac8 {[%clk 0:02:08.7]} 21.
h3 {[%clk 0:02:30.1]} 21... g5 {[%clk 0:01:55.4]} 22. d4 {[%clk 0:01:49.3]}
22... g4 {[%clk 0:01:43.2]} 23. hxg4 {[%clk 0:01:44.7]} 23... Qxg4 {[%clk
0:01:43.8]} 24. Re4 {[%clk 0:01:44.8]} 24... Qg6 {[%clk 0:01:39.5]} 25. Rce1
{[%clk 0:01:45.2]} 25... Kh8 {[%clk 0:01:28.5]} 26. Ne5 {[%clk 0:01:45.1]} 26...
Qf5 {[%clk 0:01:24.4]} 27. Rh4 {[%clk 0:01:42]} 27... f6 {[%clk 0:00:58.6]} 28.
Ng4 {[%clk 0:01:30.3]} 28... h5 {[%clk 0:00:53.3]} 29. Qh3 {[%clk 0:01:29.5]}
29... Kg8 {[%clk 0:00:50]} 30. Rxh5 {[%clk 0:01:29.6]} 30... Qc2 {[%clk
0:00:44.4]} 31. Nh6+ {[%clk 0:01:28.8]} 31... Bxh6 {[%clk 0:00:44.7]} 32. Bxh6
{[%clk 0:01:28.7]} 32... Qg6 {[%clk 0:00:19.7]} 33. Bxf8 {[%clk 0:01:12.7]}
33... Rxf8 {[%clk 0:00:19.5]} 34. Rh8+ {[%clk 0:01:09.2]} 34... Kg7 {[%clk
0:00:19.1]} 35. Ne6+ {[%clk 0:01:08.2]} 1-0

[Event "Early-Titled-Tuesday-Blitz-April-23-2024"]
[Site "Chess.com"]
[Date "2024.04.23"]
[Round "8"]
[White "maciek_92"]
[Black "sergoy"]
[Result "1-0"]
[WhiteElo "2857"]
[BlackElo "2921"]
[TimeControl "180+1"]
[EndTime "9:30:58 PDT"]
[Termination "maciek_92 won by resignation"]

1. c4 {[%clk 0:03:00.9]} 1... e5 {[%clk 0:02:59.4]} 2. Nc3 {[%clk 0:03:01.2]}
2... Nf6 {[%clk 0:02:59.6]} 3. g3 {[%clk 0:03:01.9]} 3... d5 {[%clk 0:02:59.5]}
4. cxd5 {[%clk 0:03:02.8]} 4... Nxd5 {[%clk 0:03:00.4]} 5. Bg2 {[%clk
0:03:03.5]} 5... Nb6 {[%clk 0:03:01]} 6. e3 {[%clk 0:03:03.4]} 6... Nc6 {[%clk
0:02:58.6]} 7. Nge2 {[%clk 0:03:03.6]} 7... h5 {[%clk 0:02:59.3]} 8. d4 {[%clk
0:03:02.8]} 8... h4 {[%clk 0:02:59.1]} 9. d5 {[%clk 0:03:01.5]} 9... Ne7 {[%clk
0:02:57.9]} 10. O-O {[%clk 0:03:02.2]} 10... hxg3 {[%clk 0:02:52.9]} 11. fxg3
{[%clk 0:03:03.1]} 11... Bh3 {[%clk 0:02:39.2]} 12. Bxh3 {[%clk 0:03:03.1]}
12... Rxh3 {[%clk 0:02:39.7]} 13. Rxf7 {[%clk 0:03:03.8]} 13... Rxg3+ {[%clk
0:02:28]} 14. Nxg3 {[%clk 0:03:02.6]} 14... Kxf7 {[%clk 0:02:28.9]} 15. e4
{[%clk 0:03:02.5]} 15... Kg8 {[%clk 0:02:26]} 16. Bg5 {[%clk 0:03:00.6]} 16...
Qd6 {[%clk 0:01:52.7]} 17. Kh1 {[%clk 0:02:57.7]} 17... c6 {[%clk 0:01:47.2]}
18. Bxe7 {[%clk 0:02:56.5]} 18... Qxe7 {[%clk 0:01:45.4]} 19. Nf5 {[%clk
0:02:56.5]} 19... Qf6 {[%clk 0:01:39.4]} 20. a4 {[%clk 0:02:32.4]} 20... cxd5
{[%clk 0:01:17.4]} 21. a5 {[%clk 0:02:32.2]} 21... d4 {[%clk 0:01:17.9]} 22.
axb6 {[%clk 0:02:31.4]} 22... dxc3 {[%clk 0:01:18.3]} 23. bxa7 {[%clk 0:02:26]}
23... cxb2 {[%clk 0:01:14.4]} 24. Qb3+ {[%clk 0:02:26]} 24... Kh7 {[%clk
0:01:11.8]} 25. Qxb2 {[%clk 0:02:25.1]} 25... b6 {[%clk 0:00:33.2]} 26. Qb5
{[%clk 0:02:02.3]} 26... Bc5 {[%clk 0:00:30.4]} 27. Qd7 {[%clk 0:01:58.3]} 27...
b5 {[%clk 0:00:21.8]} 28. Qb7 {[%clk 0:01:49.1]} 28... Qf8 {[%clk 0:00:22]} 29.
Ra6 {[%clk 0:01:41.1]} 29... Rxa7 {[%clk 0:00:03.6]} 30. Rxa7 {[%clk 0:01:37]}
30... Bxa7 {[%clk 0:00:04.5]} 31. Qxa7 {[%clk 0:01:37.6]} 31... b4 {[%clk
0:00:05.2]} 32. Qb7 {[%clk 0:01:31]} 32... Kh8 {[%clk 0:00:05.6]} 33. Qb5 {[%clk
0:01:29.1]} 33... Qf6 {[%clk 0:00:01.5]} 34. Qxb4 {[%clk 0:01:25.3]} 34... g6
{[%clk 0:00:02.1]} 35. Qe7 {[%clk 0:01:15.6]} 35... Qxe7 {[%clk 0:00:01.1]} 36.
Nxe7 {[%clk 0:01:15.9]} 1-0

[Event "Early-Titled-Tuesday-Blitz-April-23-2024"]
[Site "Chess.com"]
[Date "2024.04.23"]
[Round "8"]
[White "sterpfi"]
[Black "LLariMarc"]
[Result "0-1"]
[WhiteElo "2256"]
[BlackElo "2486"]
[TimeControl "180+1"]
[EndTime "9:30:59 PDT"]
[Termination "LLariMarc won by resignation"]

1. e4 {[%clk 0:03:00.9]} 1... e6 {[%clk 0:02:54.2]} 2. d4 {[%clk 0:03:00.5]}
2... d5 {[%clk 0:02:54.1]} 3. exd5 {[%clk 0:03:01.4]} 3... exd5 {[%clk 0:02:55]}
4. Nf3 {[%clk 0:03:02]} 4... Bd6 {[%clk 0:02:55]} 5. c4 {[%clk 0:03:01.3]} 5...
c6 {[%clk 0:02:52]} 6. Nc3 {[%clk 0:03:01.3]} 6... Ne7 {[%clk 0:02:51.8]} 7. Bd3
{[%clk 0:02:37.1]} 7... O-O {[%clk 0:02:48.6]} 8. O-O {[%clk 0:02:32.4]} 8...
dxc4 {[%clk 0:02:48.6]} 9. Bxc4 {[%clk 0:02:32.4]} 9... Nd7 {[%clk 0:02:47.2]}
10. Re1 {[%clk 0:02:28.4]} 10... Nb6 {[%clk 0:02:46]} 11. Bb3 {[%clk 0:02:28.3]}
11... Ned5 {[%clk 0:02:45]} 12. Ne4 {[%clk 0:02:22.3]} 12... Bg4 {[%clk
0:02:42.3]} 13. h3 {[%clk 0:02:20.2]} 13... Bh5 {[%clk 0:02:36.5]} 14. g4 {[%clk
0:02:12.2]} 14... Bg6 {[%clk 0:02:35.9]} 15. Ne5 {[%clk 0:02:12.8]} 15... Bxe4
{[%clk 0:02:34.7]} 16. Rxe4 {[%clk 0:02:12.6]} 16... a5 {[%clk 0:02:23.5]} 17.
f4 {[%clk 0:01:58.8]} 17... a4 {[%clk 0:02:22.5]} 18. Bc2 {[%clk 0:01:59]} 18...
f6 {[%clk 0:02:20.6]} 19. Nf3 {[%clk 0:01:48.2]} 19... a3 {[%clk 0:02:20.6]} 20.
Qe1 {[%clk 0:01:24.6]} 20... axb2 {[%clk 0:02:18.4]} 21. Bxb2 {[%clk 0:01:25.5]}
21... Nxf4 {[%clk 0:02:17.2]} 22. Rxf4 {[%clk 0:01:15.6]} 22... Bxf4 {[%clk
0:02:18.1]} 23. Qe4 {[%clk 0:01:15.5]} 23... Nd5 {[%clk 0:02:06]} 24. Qxh7+
{[%clk 0:01:13.8]} 24... Kf7 {[%clk 0:02:06.5]} 25. Re1 {[%clk 0:01:03.8]} 25...
Be3+ {[%clk 0:01:50.8]} 26. Rxe3 {[%clk 0:00:49.3]} 26... Nxe3 {[%clk
0:01:51.7]} 27. Qg6+ {[%clk 0:00:49.7]} 27... Ke7 {[%clk 0:01:46.6]} 28. Qe4+
{[%clk 0:00:49]} 28... Kd7 {[%clk 0:01:46.8]} 29. Qxe3 {[%clk 0:00:48.7]} 29...
Re8 {[%clk 0:01:43.8]} 30. Qf4 {[%clk 0:00:45.5]} 30... Qc7 {[%clk 0:01:43.3]}
31. Bf5+ {[%clk 0:00:43.3]} 31... Kd8 {[%clk 0:01:43.1]} 32. Qd2 {[%clk
0:00:20.4]} 32... Qg3+ {[%clk 0:01:38.8]} 33. Qg2 {[%clk 0:00:17.3]} 33... Qxg2+
{[%clk 0:01:38.5]} 34. Kxg2 {[%clk 0:00:18.2]} 34... Re2+ {[%clk 0:01:38.9]} 35.
Kg3 {[%clk 0:00:17.5]} 35... Rxb2 {[%clk 0:01:39.8]} 36. h4 {[%clk 0:00:17.4]}
36... Raxa2 {[%clk 0:01:39.2]} 37. h5 {[%clk 0:00:17.7]} 37... b5 {[%clk
0:01:38.5]} 38. g5 {[%clk 0:00:17.2]} 38... fxg5 {[%clk 0:01:37.9]} 39. Nxg5
{[%clk 0:00:18.1]} 39... Rg2+ {[%clk 0:01:38.1]} 40. Kf4 {[%clk 0:00:17.9]}
40... Raf2+ {[%clk 0:01:32.9]} 41. Nf3 {[%clk 0:00:17.9]} 41... b4 {[%clk
0:01:32.1]} 42. Ke4 {[%clk 0:00:18]} 42... b3 {[%clk 0:01:30.6]} 43. Ne5 {[%clk
0:00:18.4]} 43... Re2+ {[%clk 0:01:29.6]} 44. Kd3 {[%clk 0:00:18.3]} 44... b2
{[%clk 0:01:28.3]} 45. Nxc6+ {[%clk 0:00:17.8]} 45... Kc7 {[%clk 0:01:27.3]} 46.
Kc4 {[%clk 0:00:18.3]} 46... Kxc6 {[%clk 0:01:26]} 47. h6 {[%clk 0:00:18.1]}
47... gxh6 {[%clk 0:01:25.6]} 0-1

[Event "Early-Titled-Tuesday-Blitz-April-23-2024"]
[Site "Chess.com"]
[Date "2024.04.23"]
[Round "8"]
[White "adotand"]
[Black "AlainBruxelles"]
[Result "1-0"]
[WhiteElo "2923"]
[BlackElo "2366"]
[TimeControl "180+1"]
[EndTime "9:31:00 PDT"]
[Termination "adotand won on time"]

1. Nc3 {[%clk 0:03:00.9]} 1... d5 {[%clk 0:02:52.1]} 2. d4 {[%clk 0:03:00.9]}
2... Nf6 {[%clk 0:02:51.1]} 3. Bf4 {[%clk 0:03:01.5]} 3... e6 {[%clk 0:02:45.9]}
4. Nb5 {[%clk 0:03:01.7]} 4... Na6 {[%clk 0:02:45.3]} 5. e3 {[%clk 0:03:02.2]}
5... c6 {[%clk 0:02:43.3]} 6. Nc3 {[%clk 0:03:02.1]} 6... Nc7 {[%clk 0:02:43.2]}
7. g4 {[%clk 0:03:02.6]} 7... Bd6 {[%clk 0:02:43.3]} 8. g5 {[%clk 0:03:01.7]}
8... Bxf4 {[%clk 0:02:39.5]} 9. exf4 {[%clk 0:03:02.6]} 9... Ng8 {[%clk
0:02:35.5]} 10. h4 {[%clk 0:03:02.4]} 10... Ne7 {[%clk 0:02:35.4]} 11. Bd3
{[%clk 0:03:02.1]} 11... a6 {[%clk 0:02:33.3]} 12. Nf3 {[%clk 0:03:02.4]} 12...
Nb5 {[%clk 0:02:32.6]} 13. Ne2 {[%clk 0:03:01.9]} 13... Nd6 {[%clk 0:02:32.2]}
14. c3 {[%clk 0:03:02.4]} 14... Ndf5 {[%clk 0:02:28.3]} 15. h5 {[%clk
0:03:01.6]} 15... Qc7 {[%clk 0:02:22.8]} 16. Qd2 {[%clk 0:03:01.2]} 16... Bd7
{[%clk 0:02:16.6]} 17. Ne5 {[%clk 0:03:00.2]} 17... f6 {[%clk 0:02:11.4]} 18.
Ng4 {[%clk 0:02:59.4]} 18... O-O-O {[%clk 0:01:42]} 19. O-O-O {[%clk 0:02:56.3]}
19... Rdf8 {[%clk 0:01:37.5]} 20. h6 {[%clk 0:02:56.4]} 20... fxg5 {[%clk
0:01:29.1]} 21. fxg5 {[%clk 0:02:56.2]} 21... gxh6 {[%clk 0:01:23.8]} 22. gxh6
{[%clk 0:02:56.1]} 22... Rhg8 {[%clk 0:01:22]} 23. Ne5 {[%clk 0:02:56.5]} 23...
Ng6 {[%clk 0:01:18.5]} 24. Nxg6 {[%clk 0:02:53.6]} 24... Rxg6 {[%clk 0:01:18]}
25. Rdg1 {[%clk 0:02:48.6]} 25... Rgf6 {[%clk 0:01:09.5]} 26. f4 {[%clk
0:02:42.3]} 26... Be8 {[%clk 0:01:07.8]} 27. Bxf5 {[%clk 0:02:31.2]} 27... Rxf5
{[%clk 0:01:04.9]} 28. Rg7 {[%clk 0:02:31.8]} 28... R5f7 {[%clk 0:01:01]} 29.
Rhg1 {[%clk 0:02:31.9]} 29... Qe7 {[%clk 0:00:55.3]} 30. Qe3 {[%clk 0:02:31]}
30... Qf6 {[%clk 0:00:53.7]} 31. Qe5 {[%clk 0:02:24.8]} 31... Qxh6 {[%clk
0:00:50.2]} 32. Kd2 {[%clk 0:01:59.7]} 32... Qf6 {[%clk 0:00:26.1]} 33. Qxf6
{[%clk 0:01:59.2]} 33... Rxf6 {[%clk 0:00:26.1]} 34. Rxh7 {[%clk 0:02:00.1]}
34... R6f7 {[%clk 0:00:24.6]} 35. Rh6 {[%clk 0:01:59.9]} 35... Bd7 {[%clk
0:00:24.5]} 36. Ke3 {[%clk 0:01:59.6]} 36... Kc7 {[%clk 0:00:23.8]} 37. b4
{[%clk 0:01:59.3]} 37... Kd6 {[%clk 0:00:23.4]} 38. a3 {[%clk 0:01:59.5]} 38...
Bc8 {[%clk 0:00:18.7]} 39. Rh4 {[%clk 0:01:59.1]} 39... b6 {[%clk 0:00:18.7]}
40. Rg5 {[%clk 0:01:59.1]} 40... a5 {[%clk 0:00:18.6]} 41. Ng3 {[%clk
0:01:59.2]} 41... Ba6 {[%clk 0:00:17]} 42. f5 {[%clk 0:01:55.4]} 42... axb4
{[%clk 0:00:12.4]} 43. axb4 {[%clk 0:01:54.9]} 43... Re7 {[%clk 0:00:11.5]} 44.
Rh6 {[%clk 0:01:54.9]} 44... Rfe8 {[%clk 0:00:10.8]} 45. Kf4 {[%clk 0:01:55.2]}
45... Kd7 {[%clk 0:00:09.4]} 46. f6 {[%clk 0:01:55]} 46... Rf7 {[%clk 0:00:09]}
47. Ke5 {[%clk 0:01:55.7]} 47... Ref8 {[%clk 0:00:07.3]} 48. Rg7 {[%clk
0:01:53.1]} 48... Bd3 {[%clk 0:00:05.1]} 49. Rxf7+ {[%clk 0:01:52.8]} 49... Rxf7
{[%clk 0:00:05.5]} 50. Nh5 {[%clk 0:01:53.3]} 50... Bf5 {[%clk 0:00:03.2]} 51.
Ng7 {[%clk 0:01:52.6]} 1-0

[Event "Early-Titled-Tuesday-Blitz-April-23-2024"]
[Site "Chess.com"]
[Date "2024.04.23"]
[Round "8"]
[White "Makswolf200817"]
[Black "TigrVShlyape"]
[Result "0-1"]
[WhiteElo "2811"]
[BlackElo "3027"]
[TimeControl "180+1"]
[EndTime "9:31:04 PDT"]
[Termination "TigrVShlyape won by resignation"]

1. d4 {[%clk 0:03:00.9]} 1... d5 {[%clk 0:02:45.4]} 2. c4 {[%clk 0:03:01]} 2...
c6 {[%clk 0:02:43.6]} 3. Nf3 {[%clk 0:03:00.7]} 3... Nf6 {[%clk 0:02:43.9]} 4.
g3 {[%clk 0:03:01.1]} 4... g6 {[%clk 0:02:43.7]} 5. Bg2 {[%clk 0:02:58.5]} 5...
Bg7 {[%clk 0:02:44]} 6. O-O {[%clk 0:02:57.9]} 6... O-O {[%clk 0:02:43.6]} 7. a4
{[%clk 0:02:57.6]} 7... a5 {[%clk 0:02:37.9]} 8. cxd5 {[%clk 0:02:52.6]} 8...
cxd5 {[%clk 0:02:36.9]} 9. Nc3 {[%clk 0:02:51.8]} 9... Nc6 {[%clk 0:02:36.7]}
10. Nb5 {[%clk 0:02:50.3]} 10... Bd7 {[%clk 0:02:26.2]} 11. Bf4 {[%clk
0:02:48.4]} 11... Rc8 {[%clk 0:02:23.3]} 12. Rc1 {[%clk 0:02:48.1]} 12... Qb6
{[%clk 0:02:19.4]} 13. Qb3 {[%clk 0:02:21.3]} 13... Nb4 {[%clk 0:02:10.2]} 14.
Nc3 {[%clk 0:02:10.5]} 14... e6 {[%clk 0:02:09.2]} 15. Ne5 {[%clk 0:02:09.1]}
15... Qxd4 {[%clk 0:01:52.4]} 16. Rfd1 {[%clk 0:02:00]} 16... Qb6 {[%clk
0:01:48.2]} 17. Bg5 {[%clk 0:01:49]} 17... Bc6 {[%clk 0:01:43.9]} 18. Be3 {[%clk
0:01:35.6]} 18... Qc7 {[%clk 0:01:37.7]} 19. Nxc6 {[%clk 0:01:33.8]} 19... bxc6
{[%clk 0:01:36.7]} 20. Bc5 {[%clk 0:01:33.1]} 20... Rfd8 {[%clk 0:01:34.7]} 21.
Bxb4 {[%clk 0:01:33.2]} 21... axb4 {[%clk 0:01:31.3]} 22. Qxb4 {[%clk
0:01:34.1]} 22... Rb8 {[%clk 0:01:27.5]} 23. Qa3 {[%clk 0:01:30.1]} 23... Qb6
{[%clk 0:01:25.8]} 24. Rd2 {[%clk 0:01:22.9]} 24... Ng4 {[%clk 0:01:22.7]} 25.
Nd1 {[%clk 0:01:12.8]} 25... Ne5 {[%clk 0:01:14.3]} 26. a5 {[%clk 0:01:11.6]}
26... Qb4 {[%clk 0:01:12.3]} 27. Qxb4 {[%clk 0:01:09.1]} 27... Rxb4 {[%clk
0:01:12.4]} 28. Ne3 {[%clk 0:01:01.7]} 28... g5 {[%clk 0:01:06.9]} 29. Rdc2
{[%clk 0:00:54.5]} 29... Ra8 {[%clk 0:01:05.3]} 30. Ra1 {[%clk 0:00:52.6]} 30...
Ra6 {[%clk 0:01:02.4]} 31. Bf1 {[%clk 0:00:48.3]} 31... Rb5 {[%clk 0:00:58.7]}
32. f4 {[%clk 0:00:41.8]} 32... gxf4 {[%clk 0:00:58.5]} 33. gxf4 {[%clk
0:00:42.7]} 33... Ng6 {[%clk 0:00:57]} 34. f5 {[%clk 0:00:42.3]} 34... Bd4
{[%clk 0:00:55.7]} 35. fxg6 {[%clk 0:00:41.7]} 35... Bxe3+ {[%clk 0:00:55.7]}
36. Kh1 {[%clk 0:00:41.9]} 36... hxg6 {[%clk 0:00:56.1]} 37. Ra3 {[%clk
0:00:30.7]} 37... d4 {[%clk 0:00:56.2]} 38. Bg2 {[%clk 0:00:30]} 38... c5 {[%clk
0:00:55]} 0-1

[Event "Early-Titled-Tuesday-Blitz-April-23-2024"]
[Site "Chess.com"]
[Date "2024.04.23"]
[Round "8"]
[White "average_trans"]
[Black "KorolDimitriy75"]
[Result "1-0"]
[WhiteElo "2240"]
[BlackElo "2319"]
[TimeControl "180+1"]
[EndTime "9:31:05 PDT"]
[Termination "average_trans won on time"]

1. d4 {[%clk 0:03:00.9]} 1... Nf6 {[%clk 0:02:59.5]} 2. d5 {[%clk 0:03:01.2]}
2... c6 {[%clk 0:02:46.4]} 3. dxc6 {[%clk 0:03:00.6]} 3... Nxc6 {[%clk
0:02:46.3]} 4. c4 {[%clk 0:03:00]} 4... g6 {[%clk 0:02:45.7]} 5. Nc3 {[%clk
0:03:00.5]} 5... Bg7 {[%clk 0:02:46]} 6. f3 {[%clk 0:03:01.1]} 6... O-O {[%clk
0:02:40.9]} 7. e4 {[%clk 0:03:01.2]} 7... d6 {[%clk 0:02:39.7]} 8. Be3 {[%clk
0:03:01.4]} 8... Qa5 {[%clk 0:02:32.4]} 9. Ne2 {[%clk 0:02:56.7]} 9... Bd7
{[%clk 0:02:29.3]} 10. Nd4 {[%clk 0:02:56.7]} 10... Rfc8 {[%clk 0:02:27.9]} 11.
Rc1 {[%clk 0:02:22.4]} 11... Ne5 {[%clk 0:02:25.6]} 12. b3 {[%clk 0:02:22.5]}
12... b5 {[%clk 0:02:00.9]} 13. Bd2 {[%clk 0:02:10.7]} 13... bxc4 {[%clk
0:01:55.7]} 14. Nd5 {[%clk 0:02:09.4]} 14... Qd8 {[%clk 0:01:50.8]} 15. bxc4
{[%clk 0:02:06.3]} 15... Nxd5 {[%clk 0:01:37.9]} 16. cxd5 {[%clk 0:01:59.3]}
16... Rxc1 {[%clk 0:01:27.2]} 17. Bxc1 {[%clk 0:01:58.9]} 17... Rc8 {[%clk
0:01:07.6]} 18. Be2 {[%clk 0:01:54.2]} 18... Qa5+ {[%clk 0:01:05.6]} 19. Bd2
{[%clk 0:01:53.9]} 19... Qxa2 {[%clk 0:01:00.3]} 20. O-O {[%clk 0:01:50.9]}
20... Nc4 {[%clk 0:00:51.7]} 21. Bc1 {[%clk 0:01:29.5]} 21... Ba4 {[%clk
0:00:43.9]} 22. Qd3 {[%clk 0:01:22.5]} 22... Ne5 {[%clk 0:00:14.9]} 23. Qa6
{[%clk 0:01:18.5]} 23... Rb8 {[%clk 0:00:10]} 24. Be3 {[%clk 0:01:12.3]} 24...
Bb3 {[%clk 0:00:07.2]} 25. f4 {[%clk 0:01:05.1]} 25... Qxa6 {[%clk 0:00:06.1]}
26. Bxa6 {[%clk 0:01:04.1]} 26... Ng4 {[%clk 0:00:06.3]} 27. Nc6 {[%clk
0:00:59.4]} 27... Re8 {[%clk 0:00:03.7]} 28. Bxa7 {[%clk 0:00:58]} 28... h5
{[%clk 0:00:01.7]} 29. h3 {[%clk 0:00:57.9]} 1-0